[Event "Early-Titled-Tuesday-Blitz-April-23-2024"]
[Site "Chess.com"]
[Date "2024.04.23"]
[Round "4"]
[White "grantelgibbs"]
[Black "BenchGM"]
[Result "1-0"]
[WhiteElo "1887"]
[BlackElo "2267"]
[TimeControl "180+1"]
[EndTime "8:40:01 PDT"]
[Termination "grantelgibbs won on time"]

1. e3 {[%clk 0:03:00.9]} 1... Nf6 {[%clk 0:02:55.8]} 2. d4 {[%clk 0:02:59.6]}
2... d5 {[%clk 0:02:53.3]} 3. Nf3 {[%clk 0:02:59.5]} 3... e6 {[%clk 0:02:50.2]}
4. b3 {[%clk 0:02:59.2]} 4... c5 {[%clk 0:02:40.3]} 5. Bb2 {[%clk 0:02:57.8]}
5... Nc6 {[%clk 0:02:35.6]} 6. Be2 {[%clk 0:02:52.3]} 6... Be7 {[%clk
0:02:32.5]} 7. O-O {[%clk 0:02:52]} 7... O-O {[%clk 0:02:30.5]} 8. Nbd2 {[%clk
0:02:49.8]} 8... Bd7 {[%clk 0:02:27.6]} 9. c4 {[%clk 0:02:49.9]} 9... cxd4
{[%clk 0:02:23.6]} 10. Nxd4 {[%clk 0:02:49.3]} 10... Nxd4 {[%clk 0:02:17.6]} 11.
Bxd4 {[%clk 0:02:49]} 11... dxc4 {[%clk 0:02:16.6]} 12. Nxc4 {[%clk 0:02:47.6]}
12... Bc6 {[%clk 0:02:10.3]} 13. Bf3 {[%clk 0:02:43.7]} 13... Ne4 {[%clk
0:02:04]} 14. Rc1 {[%clk 0:02:42.6]} 14... Bf6 {[%clk 0:01:51.9]} 15. Ne5 {[%clk
0:02:39.6]} 15... Bd5 {[%clk 0:01:49.4]} 16. Qd3 {[%clk 0:02:36.9]} 16... Ng5
{[%clk 0:01:39.9]} 17. Bxd5 {[%clk 0:02:05.9]} 17... Qxd5 {[%clk 0:01:29.1]} 18.
Rc5 {[%clk 0:02:05.1]} 18... Qd6 {[%clk 0:01:09.6]} 19. h4 {[%clk 0:01:59.2]}
19... Bxe5 {[%clk 0:01:02.1]} 20. Rxe5 {[%clk 0:01:48.7]} 20... f6 {[%clk
0:01:02]} 21. Rb5 {[%clk 0:01:38.3]} 21... Nf7 {[%clk 0:01:00.4]} 22. Qe4 {[%clk
0:01:33.5]} 22... b6 {[%clk 0:00:56]} 23. Rh5 {[%clk 0:01:12.2]} 23... f5 {[%clk
0:00:41]} 24. Qb7 {[%clk 0:00:53.6]} 24... g6 {[%clk 0:00:31.3]} 25. Rg5 {[%clk
0:00:53.2]} 25... e5 {[%clk 0:00:28.3]} 26. Ba1 {[%clk 0:00:46.8]} 26... Nxg5
{[%clk 0:00:25.3]} 27. hxg5 {[%clk 0:00:46.7]} 27... Rab8 {[%clk 0:00:18.1]} 28.
Qxa7 {[%clk 0:00:45.9]} 28... Rf7 {[%clk 0:00:18.4]} 29. Qa4 {[%clk 0:00:41.9]}
29... Rd7 {[%clk 0:00:12.5]} 30. Qb5 {[%clk 0:00:38.2]} 30... Rc8 {[%clk
0:00:11.7]} 31. Bxe5 {[%clk 0:00:37.6]} 31... Qd5 {[%clk 0:00:11.6]} 32. Qa4
{[%clk 0:00:36.1]} 32... Ra8 {[%clk 0:00:08.9]} 33. Qf4 {[%clk 0:00:33.7]} 33...
Qe4 {[%clk 0:00:07.6]} 34. Qg3 {[%clk 0:00:33.3]} 34... Rxa2 {[%clk 0:00:06.5]}
35. Bf6 {[%clk 0:00:32.8]} 35... Rd8 {[%clk 0:00:05.9]} 36. Bxd8 {[%clk
0:00:31.5]} 36... f4 {[%clk 0:00:04.5]} 37. exf4 {[%clk 0:00:29.1]} 37... Qe2
{[%clk 0:00:02.6]} 38. Bf6 {[%clk 0:00:28.5]} 38... Rd2 {[%clk 0:00:02.1]} 39.
Qc3 {[%clk 0:00:27.8]} 39... Rd1 {[%clk 0:00:01.7]} 40. Qc8+ {[%clk 0:00:27.2]}
40... Kf7 {[%clk 0:00:01.2]} 41. Qc7+ {[%clk 0:00:27.1]} 41... Ke6 {[%clk
0:00:01.2]} 42. Qe7+ {[%clk 0:00:27]} 42... Kf5 {[%clk 0:00:01.5]} 43. Qxe2
{[%clk 0:00:27]} 43... Rxf1+ {[%clk 0:00:01.1]} 44. Kxf1 {[%clk 0:00:26.9]} 1-0

[Event "Early-Titled-Tuesday-Blitz-April-23-2024"]
[Site "Chess.com"]
[Date "2024.04.23"]
[Round "4"]
[White "CarlosjPineror"]
[Black "Statham_01"]
[Result "1-0"]
[WhiteElo "2774"]
[BlackElo "2572"]
[TimeControl "180+1"]
[EndTime "8:40:03 PDT"]
[Termination "CarlosjPineror won on time"]

1. e4 {[%clk 0:03:00.9]} 1... c5 {[%clk 0:03:00]} 2. Nf3 {[%clk 0:03:00.9]} 2...
d6 {[%clk 0:02:59.5]} 3. d4 {[%clk 0:03:01.5]} 3... cxd4 {[%clk 0:03:00.4]} 4.
Nxd4 {[%clk 0:03:02.1]} 4... Nf6 {[%clk 0:03:01.1]} 5. Nc3 {[%clk 0:03:02.8]}
5... g6 {[%clk 0:03:01.5]} 6. Be3 {[%clk 0:03:03.1]} 6... Bg7 {[%clk 0:03:02.1]}
7. f3 {[%clk 0:03:03.8]} 7... O-O {[%clk 0:03:02.7]} 8. Qd2 {[%clk 0:03:04.5]}
8... Nc6 {[%clk 0:03:03.1]} 9. O-O-O {[%clk 0:03:05.2]} 9... d5 {[%clk
0:03:02.5]} 10. exd5 {[%clk 0:03:06.1]} 10... Nxd5 {[%clk 0:03:02.7]} 11. Nxc6
{[%clk 0:03:05.5]} 11... bxc6 {[%clk 0:03:03]} 12. Bd4 {[%clk 0:03:06]} 12... e5
{[%clk 0:03:03]} 13. Bc5 {[%clk 0:03:05.8]} 13... Qh4 {[%clk 0:03:01.9]} 14.
Bxf8 {[%clk 0:02:30.9]} 14... Bxf8 {[%clk 0:03:02.8]} 15. Nxd5 {[%clk
0:02:31.2]} 15... cxd5 {[%clk 0:03:02.8]} 16. Qxd5 {[%clk 0:02:31.5]} 16... Rb8
{[%clk 0:02:54.9]} 17. Qxe5 {[%clk 0:02:28.8]} 17... Qb4 {[%clk 0:02:50]} 18.
Rd8 {[%clk 0:02:24.8]} 18... Qb6 {[%clk 0:02:23.6]} 19. Re8 {[%clk 0:02:22.7]}
19... f6 {[%clk 0:01:53.7]} 20. Bc4+ {[%clk 0:02:21.4]} 20... Kg7 {[%clk
0:01:49.2]} 21. Qc3 {[%clk 0:01:37.5]} 21... Bb4 {[%clk 0:01:18.7]} 22. Rg8+
{[%clk 0:01:36.6]} 22... Kh6 {[%clk 0:01:19]} 23. Qd3 {[%clk 0:01:29.2]} 23...
Bc5 {[%clk 0:00:37.4]} 24. Bb3 {[%clk 0:01:25.8]} 24... a5 {[%clk 0:00:19.2]}
25. Re1 {[%clk 0:01:19.2]} 25... Bb4 {[%clk 0:00:04.9]} 26. c3 {[%clk
0:01:17.7]} 26... Bf5 {[%clk 0:00:04]} 27. Qd2+ {[%clk 0:01:18.1]} 27... g5
{[%clk 0:00:04.4]} 28. h4 {[%clk 0:01:12.3]} 28... Rxg8 {[%clk 0:00:03.8]} 29.
hxg5+ {[%clk 0:01:09.6]} 29... Rxg5 {[%clk 0:00:03.7]} 30. g4 {[%clk 0:00:59.7]}
30... Bg6 {[%clk 0:00:03.7]} 31. f4 {[%clk 0:00:30.7]} 31... Rxg4 {[%clk
0:00:04]} 32. f5+ {[%clk 0:00:31.3]} 32... Rg5 {[%clk 0:00:04.5]} 33. fxg6
{[%clk 0:00:32]} 33... Kxg6 {[%clk 0:00:03.1]} 34. cxb4 {[%clk 0:00:28.1]} 34...
Qc6+ {[%clk 0:00:02.2]} 35. Qc2+ {[%clk 0:00:26.9]} 35... Qxc2+ {[%clk 0:00:02]}
36. Bxc2+ {[%clk 0:00:27.8]} 36... Kg7 {[%clk 0:00:02.6]} 37. bxa5 {[%clk
0:00:27.9]} 37... Rxa5 {[%clk 0:00:03.5]} 38. a4 {[%clk 0:00:28.3]} 38... h5
{[%clk 0:00:03.8]} 39. b4 {[%clk 0:00:28.4]} 39... Rg5 {[%clk 0:00:03.8]} 40. a5
{[%clk 0:00:28.2]} 40... h4 {[%clk 0:00:03.7]} 41. a6 {[%clk 0:00:28.7]} 41...
Re5 {[%clk 0:00:03.1]} 42. Rxe5 {[%clk 0:00:28.1]} 42... fxe5 {[%clk 0:00:02.2]}
43. Be4 {[%clk 0:00:29]} 1-0

[Event "Early-Titled-Tuesday-Blitz-April-23-2024"]
[Site "Chess.com"]
[Date "2024.04.23"]
[Round "4"]
[White "McCarthyStone"]
[Black "Zavgorodniy_Sergiy"]
[Result "1-0"]
[WhiteElo "2410"]
[BlackElo "2591"]
[TimeControl "180+1"]
[EndTime "8:40:04 PDT"]
[Termination "McCarthyStone won by resignation"]

1. Nf3 {[%clk 0:03:00.9]} 1... Nf6 {[%clk 0:02:59.4]} 2. e3 {[%clk 0:03:01.5]}
2... b6 {[%clk 0:02:55.8]} 3. b3 {[%clk 0:03:00.1]} 3... Bb7 {[%clk 0:02:56.2]}
4. Bb2 {[%clk 0:03:01]} 4... g6 {[%clk 0:02:52.7]} 5. g3 {[%clk 0:02:58.4]} 5...
Bg7 {[%clk 0:02:52.8]} 6. Bg2 {[%clk 0:02:59.1]} 6... O-O {[%clk 0:02:53.4]} 7.
O-O {[%clk 0:02:59.8]} 7... a5 {[%clk 0:02:51.9]} 8. a3 {[%clk 0:02:58.6]} 8...
e6 {[%clk 0:02:48.4]} 9. c4 {[%clk 0:02:58.6]} 9... d6 {[%clk 0:02:44.5]} 10.
Nc3 {[%clk 0:02:58.1]} 10... Nbd7 {[%clk 0:02:45.1]} 11. Qe2 {[%clk 0:02:57.4]}
11... Qe7 {[%clk 0:02:44.4]} 12. Rfd1 {[%clk 0:02:57.7]} 12... h6 {[%clk
0:02:40.4]} 13. Rac1 {[%clk 0:02:57.9]} 13... Rab8 {[%clk 0:02:39.8]} 14. h4
{[%clk 0:02:58.6]} 14... Rfc8 {[%clk 0:02:36.9]} 15. d3 {[%clk 0:02:58.1]} 15...
Ng4 {[%clk 0:02:32.2]} 16. d4 {[%clk 0:02:54.4]} 16... f5 {[%clk 0:02:31.1]} 17.
e4 {[%clk 0:02:51.5]} 17... f4 {[%clk 0:02:28.4]} 18. gxf4 {[%clk 0:02:29.6]}
18... Rf8 {[%clk 0:02:27]} 19. Ng5 {[%clk 0:02:30]} 19... Rxf4 {[%clk
0:02:23.2]} 20. Nh3 {[%clk 0:02:30.2]} 20... Rbf8 {[%clk 0:02:20.8]} 21. Nxf4
{[%clk 0:02:29.1]} 21... Rxf4 {[%clk 0:02:21.7]} 22. f3 {[%clk 0:02:24.3]} 22...
Ngf6 {[%clk 0:02:04.3]} 23. Qe1 {[%clk 0:02:19.8]} 23... Nh5 {[%clk 0:01:57]}
24. Ne2 {[%clk 0:02:16.3]} 24... e5 {[%clk 0:01:52.6]} 25. Nxf4 {[%clk
0:02:15.6]} 25... Nxf4 {[%clk 0:01:53.5]} 26. d5 {[%clk 0:01:55.7]} 26... Bf6
{[%clk 0:01:51]} 27. c5 {[%clk 0:00:47.1]} 27... Nxc5 {[%clk 0:01:12.6]} 28.
Rxc5 {[%clk 0:00:46.5]} 28... bxc5 {[%clk 0:01:02]} 29. Qxa5 {[%clk 0:00:45.8]}
29... Bxh4 {[%clk 0:01:02.5]} 30. Bc1 {[%clk 0:00:37.5]} 30... Bg3 {[%clk
0:00:44.8]} 31. Bxf4 {[%clk 0:00:29.7]} 31... Bxf4 {[%clk 0:00:39.7]} 32. Qb5
{[%clk 0:00:27.8]} 32... Bc8 {[%clk 0:00:24.4]} 33. Qb8 {[%clk 0:00:27.5]} 33...
Qd8 {[%clk 0:00:25]} 34. Bh3 {[%clk 0:00:11]} 34... Be3+ {[%clk 0:00:11.5]} 35.
Kh1 {[%clk 0:00:06]} 35... Kg7 {[%clk 0:00:10.4]} 36. Qxc8 {[%clk 0:00:05.7]}
1-0

[Event "Early-Titled-Tuesday-Blitz-April-23-2024"]
[Site "Chess.com"]
[Date "2024.04.23"]
[Round "4"]
[White "Durarbayli"]
[Black "js20000"]
[Result "1/2-1/2"]
[WhiteElo "2935"]
[BlackElo "2745"]
[TimeControl "180+1"]
[EndTime "8:40:05 PDT"]
[Termination "Game drawn by repetition"]

1. e4 {[%clk 0:03:00.9]} 1... c6 {[%clk 0:02:58.3]} 2. d4 {[%clk 0:03:00.5]}
2... d5 {[%clk 0:02:58.2]} 3. e5 {[%clk 0:02:56.9]} 3... Bf5 {[%clk 0:02:57.5]}
4. Nf3 {[%clk 0:02:56.6]} 4... e6 {[%clk 0:02:57.1]} 5. Be2 {[%clk 0:02:56.7]}
5... Nd7 {[%clk 0:02:54.9]} 6. O-O {[%clk 0:02:54]} 6... a5 {[%clk 0:02:54.3]}
7. Nbd2 {[%clk 0:02:46.8]} 7... a4 {[%clk 0:02:51.8]} 8. c4 {[%clk 0:02:42.7]}
8... Bb4 {[%clk 0:02:47.6]} 9. a3 {[%clk 0:02:31.6]} 9... Bxd2 {[%clk
0:02:47.4]} 10. Bxd2 {[%clk 0:02:30.5]} 10... Ne7 {[%clk 0:02:43.7]} 11. Bb4
{[%clk 0:02:20.7]} 11... O-O {[%clk 0:02:35.4]} 12. Bd6 {[%clk 0:01:56.3]} 12...
dxc4 {[%clk 0:02:27.5]} 13. Bxc4 {[%clk 0:01:55.1]} 13... Nb6 {[%clk 0:02:26]}
14. Ba2 {[%clk 0:01:51.4]} 14... Re8 {[%clk 0:02:24.2]} 15. Re1 {[%clk
0:01:50.8]} 15... Ned5 {[%clk 0:02:20.4]} 16. Rc1 {[%clk 0:01:40.8]} 16... h6
{[%clk 0:02:17.3]} 17. Qd2 {[%clk 0:01:33.8]} 17... Nc8 {[%clk 0:02:16.5]} 18.
Bc5 {[%clk 0:01:30.4]} 18... Bg4 {[%clk 0:02:04.3]} 19. Kh1 {[%clk 0:01:13.2]}
19... b6 {[%clk 0:01:51.3]} 20. Bb4 {[%clk 0:01:13.4]} 20... Nxb4 {[%clk
0:01:25.8]} 21. axb4 {[%clk 0:01:13.3]} 21... Ne7 {[%clk 0:01:10.7]} 22. Re4
{[%clk 0:00:50.8]} 22... Bf5 {[%clk 0:00:48.6]} 23. Re3 {[%clk 0:00:48.7]} 23...
a3 {[%clk 0:00:48.4]} 24. Rxa3 {[%clk 0:00:45.3]} 24... Be4 {[%clk 0:00:39.7]}
25. Qe3 {[%clk 0:00:28.2]} 25... Bxf3 {[%clk 0:00:34.4]} 26. gxf3 {[%clk
0:00:28.2]} 26... Nf5 {[%clk 0:00:32]} 27. Qe4 {[%clk 0:00:26.1]} 27... Qxd4
{[%clk 0:00:28.2]} 28. Qxd4 {[%clk 0:00:17.1]} 28... Nxd4 {[%clk 0:00:29.1]} 29.
Kg2 {[%clk 0:00:14.6]} 29... Rxa3 {[%clk 0:00:22.1]} 30. bxa3 {[%clk 0:00:15.5]}
30... Ra8 {[%clk 0:00:22.1]} 31. Rc3 {[%clk 0:00:15.6]} 31... Nb5 {[%clk
0:00:18.3]} 32. Rxc6 {[%clk 0:00:15.5]} 32... Rxa3 {[%clk 0:00:18.1]} 33. Bb1
{[%clk 0:00:16]} 33... g6 {[%clk 0:00:18.2]} 34. Rxb6 {[%clk 0:00:15.4]} 34...
Nc3 {[%clk 0:00:17.2]} 35. Be4 {[%clk 0:00:12.7]} 35... Ne2 {[%clk 0:00:17.2]}
36. Rb8+ {[%clk 0:00:10.1]} 36... Kg7 {[%clk 0:00:16.5]} 37. b5 {[%clk 0:00:11]}
37... Ra1 {[%clk 0:00:16.4]} 38. f4 {[%clk 0:00:09.4]} 38... Nxf4+ {[%clk
0:00:16.1]} 39. Kg3 {[%clk 0:00:10.1]} 39... g5 {[%clk 0:00:16]} 40. b6 {[%clk
0:00:10.3]} 40... Ra3+ {[%clk 0:00:15.5]} 41. Bf3 {[%clk 0:00:05.8]} 41... Ne2+
{[%clk 0:00:15]} 42. Kg2 {[%clk 0:00:06.2]} 42... Nf4+ {[%clk 0:00:15.3]} 43.
Kg3 {[%clk 0:00:06.8]} 43... Ne2+ {[%clk 0:00:13.1]} 44. Kg2 {[%clk 0:00:06.9]}
44... Nf4+ {[%clk 0:00:12.1]} 45. Kg3 {[%clk 0:00:07.3]} 1/2-1/2

[Event "Early-Titled-Tuesday-Blitz-April-23-2024"]
[Site "Chess.com"]
[Date "2024.04.23"]
[Round "4"]
[White "lamomiajunior"]
[Black "amanjazu"]
[Result "1-0"]
[WhiteElo "2737"]
[BlackElo "2538"]
[TimeControl "180+1"]
[EndTime "8:40:10 PDT"]
[Termination "lamomiajunior won by checkmate"]

1. e4 {[%clk 0:03:00.9]} 1... c5 {[%clk 0:02:56.8]} 2. Nf3 {[%clk 0:03:01.1]}
2... d6 {[%clk 0:02:54.3]} 3. d4 {[%clk 0:03:01]} 3... cxd4 {[%clk 0:02:55.2]}
4. Nxd4 {[%clk 0:03:01.9]} 4... Nf6 {[%clk 0:02:55.7]} 5. Nc3 {[%clk 0:03:02.5]}
5... a6 {[%clk 0:02:55.1]} 6. f3 {[%clk 0:03:02.1]} 6... g6 {[%clk 0:02:55.5]}
7. Be3 {[%clk 0:03:02.6]} 7... Bg7 {[%clk 0:02:56.1]} 8. Qd2 {[%clk 0:03:03.3]}
8... Qc7 {[%clk 0:02:50]} 9. g4 {[%clk 0:03:00.7]} 9... b5 {[%clk 0:02:46.3]}
10. g5 {[%clk 0:02:58.9]} 10... b4 {[%clk 0:02:40.6]} 11. Na4 {[%clk 0:02:50.1]}
11... Nfd7 {[%clk 0:02:37.2]} 12. Qxb4 {[%clk 0:02:44.7]} 12... Nc6 {[%clk
0:02:35.5]} 13. Nxc6 {[%clk 0:02:42.7]} 13... Qxc6 {[%clk 0:02:36.4]} 14. Qc4
{[%clk 0:02:32.8]} 14... Qb7 {[%clk 0:02:22.5]} 15. Bg2 {[%clk 0:01:55.7]} 15...
Ne5 {[%clk 0:02:11.1]} 16. Qd5 {[%clk 0:01:43.8]} 16... Qxd5 {[%clk 0:01:43.2]}
17. exd5 {[%clk 0:01:43.9]} 17... Nc4 {[%clk 0:01:43.6]} 18. Bf2 {[%clk
0:01:39.1]} 18... Bd7 {[%clk 0:01:28]} 19. Nb6 {[%clk 0:01:28.9]} 19... Nxb6
{[%clk 0:01:26.6]} 20. Bxb6 {[%clk 0:01:29.8]} 20... Rb8 {[%clk 0:01:26.9]} 21.
Be3 {[%clk 0:01:28.5]} 21... Rxb2 {[%clk 0:01:26.7]} 22. Kd2 {[%clk 0:01:13.9]}
22... Bf5 {[%clk 0:01:26.5]} 23. Rhc1 {[%clk 0:01:10.2]} 23... Kd7 {[%clk
0:01:26]} 24. Rab1 {[%clk 0:01:09.5]} 24... Rc8 {[%clk 0:01:15]} 25. Ke1 {[%clk
0:00:39.6]} 25... Rcxc2 {[%clk 0:01:04.6]} 26. Rxb2 {[%clk 0:00:36.9]} 26...
Rxb2 {[%clk 0:01:05.5]} 27. Bf1 {[%clk 0:00:34.7]} 27... Rxa2 {[%clk 0:00:53.8]}
28. h4 {[%clk 0:00:34.7]} 28... Bb2 {[%clk 0:00:48.7]} 29. Rc6 {[%clk
0:00:28.9]} 29... e6 {[%clk 0:00:32]} 30. Bc4 {[%clk 0:00:18.8]} 30... Bc3+
{[%clk 0:00:21.9]} 31. Kf1 {[%clk 0:00:16.7]} 31... Ra1+ {[%clk 0:00:20.8]} 32.
Kg2 {[%clk 0:00:17]} 32... a5 {[%clk 0:00:16.4]} 33. Ra6 {[%clk 0:00:15.5]}
33... exd5 {[%clk 0:00:15.2]} 34. Bxd5 {[%clk 0:00:15.1]} 34... Be6 {[%clk
0:00:15.5]} 35. Ra7+ {[%clk 0:00:14.7]} 35... Kc8 {[%clk 0:00:14.8]} 36. Bb7+
{[%clk 0:00:15]} 36... Kb8 {[%clk 0:00:14.4]} 37. Bc6 {[%clk 0:00:15.6]} 37...
Re1 {[%clk 0:00:11.7]} 38. Bb6 {[%clk 0:00:15.5]} 38... Re2+ {[%clk 0:00:04.2]}
39. Kf1 {[%clk 0:00:15.9]} 39... Re1+ {[%clk 0:00:04.4]} 40. Kf2 {[%clk
0:00:16]} 40... Bd5 {[%clk 0:00:01.4]} 41. Ra8# {[%clk 0:00:16]} 1-0

[Event "Early-Titled-Tuesday-Blitz-April-23-2024"]
[Site "Chess.com"]
[Date "2024.04.23"]
[Round "4"]
[White "praveenb2002"]
[Black "Nikolakis2014"]
[Result "0-1"]
[WhiteElo "2887"]
[BlackElo "2742"]
[TimeControl "180+1"]
[EndTime "8:40:11 PDT"]
[Termination "Nikolakis2014 won on time"]

1. c4 {[%clk 0:03:00.9]} 1... Nf6 {[%clk 0:02:59.5]} 2. Nc3 {[%clk 0:02:58]}
2... g6 {[%clk 0:02:59.6]} 3. g3 {[%clk 0:02:50.6]} 3... Bg7 {[%clk 0:02:59.1]}
4. Bg2 {[%clk 0:02:51.3]} 4... O-O {[%clk 0:02:59.2]} 5. d4 {[%clk 0:02:49]}
5... d6 {[%clk 0:02:59.3]} 6. Nf3 {[%clk 0:02:49.2]} 6... Nbd7 {[%clk
0:02:59.5]} 7. O-O {[%clk 0:02:47.2]} 7... e5 {[%clk 0:02:59.3]} 8. h3 {[%clk
0:02:47.1]} 8... Re8 {[%clk 0:02:54.5]} 9. e4 {[%clk 0:02:45.4]} 9... exd4
{[%clk 0:02:54.3]} 10. Nxd4 {[%clk 0:02:46.3]} 10... Nc5 {[%clk 0:02:53.3]} 11.
Re1 {[%clk 0:02:45.5]} 11... h6 {[%clk 0:02:51.6]} 12. Rb1 {[%clk 0:02:37.6]}
12... a5 {[%clk 0:02:51.7]} 13. b3 {[%clk 0:02:31.8]} 13... Bd7 {[%clk
0:02:47.6]} 14. Bf4 {[%clk 0:02:27.1]} 14... Nh7 {[%clk 0:02:40.5]} 15. Kh2
{[%clk 0:02:15.9]} 15... Ng5 {[%clk 0:02:28.5]} 16. Rc1 {[%clk 0:02:15.6]} 16...
Be5 {[%clk 0:01:25.6]} 17. Be3 {[%clk 0:02:09.1]} 17... Nxh3 {[%clk 0:00:49.5]}
18. f4 {[%clk 0:01:13.2]} 18... Nxf4 {[%clk 0:00:48]} 19. Bxf4 {[%clk
0:01:12.8]} 19... Bxf4 {[%clk 0:00:47.5]} 20. gxf4 {[%clk 0:01:13.4]} 20... Qh4+
{[%clk 0:00:47.6]} 21. Kg1 {[%clk 0:01:14.1]} 21... Qxf4 {[%clk 0:00:47.9]} 22.
Nd5 {[%clk 0:01:14.7]} 22... Qe5 {[%clk 0:00:48]} 23. Nxc7 {[%clk 0:01:13.5]}
23... Qg5 {[%clk 0:00:40.6]} 24. Qf3 {[%clk 0:00:58.7]} 24... Rxe4 {[%clk
0:00:25.3]} 25. Nxa8 {[%clk 0:00:34.6]} 25... Rxd4 {[%clk 0:00:21.7]} 26. Rf1
{[%clk 0:00:34]} 26... Be6 {[%clk 0:00:19.6]} 27. Nc7 {[%clk 0:00:30.5]} 27...
Bf5 {[%clk 0:00:19.9]} 28. Nd5 {[%clk 0:00:27.9]} 28... Rg4 {[%clk 0:00:19.8]}
29. Ne3 {[%clk 0:00:25]} 29... Rg3 {[%clk 0:00:18.4]} 30. Qf4 {[%clk 0:00:19.2]}
30... Rxe3 {[%clk 0:00:18.5]} 31. Qxd6 {[%clk 0:00:17.7]} 31... Rg3 {[%clk
0:00:17.6]} 32. Qd5 {[%clk 0:00:15.6]} 32... Ne4 {[%clk 0:00:17.7]} 33. Rc2
{[%clk 0:00:15.1]} 33... Qe3+ {[%clk 0:00:17.2]} 34. Kh1 {[%clk 0:00:14.9]}
34... Rg4 {[%clk 0:00:16.8]} 35. Rf3 {[%clk 0:00:07.4]} 35... Rh4+ {[%clk
0:00:15.3]} 36. Rh3 {[%clk 0:00:03.8]} 36... Rxh3+ {[%clk 0:00:13.5]} 37. Bxh3
{[%clk 0:00:03.8]} 37... Qxh3+ {[%clk 0:00:13.6]} 38. Kg1 {[%clk 0:00:04.3]}
38... Qe3+ {[%clk 0:00:13.4]} 39. Kh2 {[%clk 0:00:02.4]} 39... Qf4+ {[%clk
0:00:12.9]} 40. Kg1 {[%clk 0:00:02.2]} 40... h5 {[%clk 0:00:11.7]} 41. Qd8+
{[%clk 0:00:01.8]} 41... Kg7 {[%clk 0:00:11.2]} 42. Qd4+ {[%clk 0:00:01.7]}
42... Kh7 {[%clk 0:00:11.6]} 43. Rg2 {[%clk 0:00:01.3]} 43... h4 {[%clk
0:00:11.3]} 0-1

[Event "Early-Titled-Tuesday-Blitz-April-23-2024"]
[Site "Chess.com"]
[Date "2024.04.23"]
[Round "4"]
[White "BashirliSaadat"]
[Black "Kobalia"]
[Result "0-1"]
[WhiteElo "2385"]
[BlackElo "2818"]
[TimeControl "180+1"]
[EndTime "8:40:11 PDT"]
[Termination "Kobalia won on time"]

1. d4 {[%clk 0:03:00.9]} 1... f5 {[%clk 0:02:59.8]} 2. e3 {[%clk 0:03:00.6]}
2... Nf6 {[%clk 0:02:59.9]} 3. Bd3 {[%clk 0:02:58.5]} 3... g6 {[%clk 0:03:00]}
4. f4 {[%clk 0:02:58.3]} 4... Bg7 {[%clk 0:03:00.3]} 5. Nf3 {[%clk 0:02:58.6]}
5... O-O {[%clk 0:03:00.5]} 6. O-O {[%clk 0:02:59]} 6... b6 {[%clk 0:03:00.9]}
7. b3 {[%clk 0:02:57.4]} 7... Bb7 {[%clk 0:03:01.2]} 8. Bb2 {[%clk 0:02:56.5]}
8... e6 {[%clk 0:02:56.8]} 9. Nbd2 {[%clk 0:02:53.1]} 9... Nc6 {[%clk
0:02:55.7]} 10. a3 {[%clk 0:02:51]} 10... Ne7 {[%clk 0:02:55.6]} 11. c4 {[%clk
0:02:48.6]} 11... d6 {[%clk 0:02:46.6]} 12. Qe2 {[%clk 0:02:47]} 12... Qd7
{[%clk 0:02:45.5]} 13. Rac1 {[%clk 0:02:42.4]} 13... Ne4 {[%clk 0:02:44.5]} 14.
Bxe4 {[%clk 0:02:35.8]} 14... fxe4 {[%clk 0:02:44.4]} 15. Ng5 {[%clk 0:02:36.2]}
15... d5 {[%clk 0:02:43.7]} 16. c5 {[%clk 0:02:15.9]} 16... a5 {[%clk
0:02:42.5]} 17. Qf2 {[%clk 0:01:47]} 17... Ba6 {[%clk 0:02:39.7]} 18. Rfe1
{[%clk 0:01:45.7]} 18... Rab8 {[%clk 0:02:37.7]} 19. Ba1 {[%clk 0:01:15.6]}
19... Bf6 {[%clk 0:02:37.1]} 20. Nh3 {[%clk 0:01:08.8]} 20... Nf5 {[%clk
0:02:36.5]} 21. g3 {[%clk 0:01:03.1]} 21... Be7 {[%clk 0:02:31.3]} 22. b4 {[%clk
0:01:00.8]} 22... axb4 {[%clk 0:02:29.4]} 23. axb4 {[%clk 0:01:00.5]} 23... Bb5
{[%clk 0:02:29.9]} 24. Bc3 {[%clk 0:00:58.2]} 24... Ra8 {[%clk 0:02:29.7]} 25.
Ra1 {[%clk 0:00:57.7]} 25... Nh6 {[%clk 0:02:21.6]} 26. Reb1 {[%clk 0:00:55.1]}
26... e5 {[%clk 0:01:58.2]} 27. Kg2 {[%clk 0:00:52.4]} 27... exf4 {[%clk
0:01:54.3]} 28. exf4 {[%clk 0:00:46.6]} 28... Ng4 {[%clk 0:01:48]} 29. Qe1
{[%clk 0:00:46.4]} 29... e3 {[%clk 0:01:43.6]} 30. Nf3 {[%clk 0:00:46.3]} 30...
Qf5 {[%clk 0:01:43.2]} 31. Qc1 {[%clk 0:00:34.5]} 31... Bd3 {[%clk 0:01:40.5]}
32. Rxa8 {[%clk 0:00:30.1]} 32... Rxa8 {[%clk 0:01:40.1]} 33. Ra1 {[%clk
0:00:28.9]} 33... Rxa1 {[%clk 0:01:26.3]} 34. Bxa1 {[%clk 0:00:24.2]} 34... Be4
{[%clk 0:01:24.9]} 35. Ng1 {[%clk 0:00:21.6]} 35... Bxf3+ {[%clk 0:01:19.3]} 36.
Nxf3 {[%clk 0:00:20.5]} 36... Qd3 {[%clk 0:01:19.2]} 37. Qe1 {[%clk 0:00:16.2]}
37... Qc2+ {[%clk 0:01:16.1]} 38. Kg1 {[%clk 0:00:16.3]} 38... Qd3 {[%clk
0:00:44.1]} 39. h3 {[%clk 0:00:14.1]} 39... Nf2 {[%clk 0:00:43.3]} 40. Kg2
{[%clk 0:00:13.4]} 40... Ne4 {[%clk 0:00:38.1]} 41. Ne5 {[%clk 0:00:12.8]} 41...
Qd2+ {[%clk 0:00:37.3]} 42. Kf1 {[%clk 0:00:09.8]} 42... e2+ {[%clk 0:00:17.6]}
0-1